[Event "Titled Tuesday Blitz July 26 Early 2022"]
[White "Hamley, Ryan"]
[Black "Avalos Parra, Joao"]
[WhiteFideId "30959497"]
[BlackFideId "3402541"]
[WhiteElo "2520"]
[BlackElo "2173"]
[Result "1/2-1/2"]
[Round "05"]
[TimeControl "180+1"]
[Date "2022.07.27"]
[WhiteClock "0:00:20"]
[BlackClock "0:00:08"]

1. d4 {[%clk 0:02:53]}  Nf6 {[%clk 0:02:56]} 2. c4 {[%clk 0:02:53]}  e6 {[%clk 0:02:56]} 3. Nf3 {[%clk 0:02:52]}  d5 {[%clk 0:02:56]} 4. Nc3 {[%clk 0:02:53]}  c5 {[%clk 0:02:55]} 5. cxd5 {[%clk 0:02:52]}  Nxd5 {[%clk 0:02:56]} 6. e4 {[%clk 0:02:52]}  Nxc3 {[%clk 0:02:56]} 7. bxc3 {[%clk 0:02:52]}  cxd4 {[%clk 0:02:56]} 8. cxd4 {[%clk 0:02:53]}  Bb4+ {[%clk 0:02:56]} 9. Bd2 {[%clk 0:02:54]}  Bxd2+ {[%clk 0:02:57]} 10. Qxd2 {[%clk 0:02:54]}  O-O {[%clk 0:02:56]} 11. Bc4 {[%clk 0:02:55]}  Nc6 {[%clk 0:02:54]} 12. O-O {[%clk 0:02:53]}  b6 {[%clk 0:02:35]} 13. d5 {[%clk 0:02:42]}  Na5 {[%clk 0:02:33]} 14. Bd3 {[%clk 0:02:41]}  exd5 {[%clk 0:02:27]} 15. exd5 {[%clk 0:02:41]}  Bb7 {[%clk 0:02:25]} 16. d6 {[%clk 0:02:20]}  Bxf3 {[%clk 0:02:20]} 17. gxf3 {[%clk 0:02:21]}  Qf6 {[%clk 0:02:16]} 18. Be4 {[%clk 0:02:03]}  Rad8 {[%clk 0:02:13]} 19. d7 {[%clk 0:02:04]}  Nc4 {[%clk 0:01:53]} 20. Qc2 {[%clk 0:01:59]}  Ne5 {[%clk 0:01:52]} 21. Kg2 {[%clk 0:01:25]}  Rxd7 {[%clk 0:01:48]} 22. Bxh7+ {[%clk 0:01:25]}  Kh8 {[%clk 0:01:48]} 23. Be4 {[%clk 0:01:23]}  Rfd8 {[%clk 0:01:43]} 24. Rad1 {[%clk 0:01:20]}  g6 {[%clk 0:01:03]} 25. Rxd7 {[%clk 0:01:17]}  Rxd7 {[%clk 0:01:04]} 26. Rd1 {[%clk 0:01:17]}  Rxd1 {[%clk 0:00:58]} 27. Qxd1 {[%clk 0:01:16]}  Kg7 {[%clk 0:00:59]} 28. Qd4 {[%clk 0:01:13]}  g5 {[%clk 0:00:21]} 29. Qe3 {[%clk 0:01:11]}  Qf4 {[%clk 0:00:20]} 30. h3 {[%clk 0:00:56]}  Kf6 {[%clk 0:00:19]} 31. a4 {[%clk 0:00:54]}  Qxe3 {[%clk 0:00:17]} 32. fxe3 {[%clk 0:00:55]}  Nc4 {[%clk 0:00:17]} 33. Kf2 {[%clk 0:00:54]}  Ke5 {[%clk 0:00:18]} 34. Bc2 {[%clk 0:00:52]}  a5 {[%clk 0:00:16]} 35. Bb3 {[%clk 0:00:51]}  Nd6 {[%clk 0:00:15]} 36. Kg3 {[%clk 0:00:51]}  f5 {[%clk 0:00:15]} 37. f4+ {[%clk 0:00:50]}  gxf4+ {[%clk 0:00:16]} 38. exf4+ {[%clk 0:00:50]}  Kf6 {[%clk 0:00:16]} 39. Kf3 {[%clk 0:00:48]}  b5 {[%clk 0:00:16]} 40. Ke3 {[%clk 0:00:43]}  b4 {[%clk 0:00:14]} 41. Kd4 {[%clk 0:00:43]}  Ne4 {[%clk 0:00:14]} 42. Bc2 {[%clk 0:00:37]}  Nc3 {[%clk 0:00:11]} 43. Kc5 {[%clk 0:00:36]}  Ne2 {[%clk 0:00:08]} 44. Kb6 {[%clk 0:00:33]}  Nxf4 {[%clk 0:00:08]} 45. Kxa5 {[%clk 0:00:33]}  Nd5 {[%clk 0:00:07]} 46. Kb5 {[%clk 0:00:32]}  Ke5 {[%clk 0:00:06]} 47. a5 {[%clk 0:00:27]}  f4 {[%clk 0:00:06]} 48. a6 {[%clk 0:00:27]}  Nc7+ {[%clk 0:00:04]} 49. Kxb4 {[%clk 0:00:23]}  Nxa6+ {[%clk 0:00:04]} 50. Kc4 {[%clk 0:00:24]}  Nc7 {[%clk 0:00:04]} 51. Kd3 {[%clk 0:00:24]}  Nd5 {[%clk 0:00:04]} 52. Ke2 {[%clk 0:00:24]}  Ne3 {[%clk 0:00:04]} 53. Bd3 {[%clk 0:00:22]}  Ng2 {[%clk 0:00:02]} 54. Kf2 {[%clk 0:00:21]}  Nh4 {[%clk 0:00:03]} 55. Bc2 {[%clk 0:00:20]}  Kd4 {[%clk 0:00:04]} 56. Bb1 {[%clk 0:00:20]}  Ke5 {[%clk 0:00:05]} 57. Bc2 {[%clk 0:00:21]}  Kf6 {[%clk 0:00:05]} 58. Ke2 {[%clk 0:00:20]}  Kg5 {[%clk 0:00:06]} 59. Kd3 {[%clk 0:00:21]}  f3 {[%clk 0:00:07]} 60. Ke3 {[%clk 0:00:20]}  Kh5 {[%clk 0:00:06]} 61. Kf2 {[%clk 0:00:19]}  Kg5 {[%clk 0:00:06]} 62. Kg3 {[%clk 0:00:19]}  f2 {[%clk 0:00:04]} 63. Kxf2 {[%clk 0:00:19]}  Kf4 {[%clk 0:00:05]} 64. Bd1 {[%clk 0:00:19]}  Ng6 {[%clk 0:00:05]} 65. Bg4 {[%clk 0:00:19]}  Nh4 {[%clk 0:00:06]} 66. Ke2 {[%clk 0:00:19]}  Ng6 {[%clk 0:00:06]} 67. Kd3 {[%clk 0:00:20]}  Nh4 {[%clk 0:00:07]} 68. Kd4 {[%clk 0:00:20]}  Ng2 {[%clk 0:00:07]} 69. Kd5 {[%clk 0:00:20]}  Kg3 {[%clk 0:00:08]} 70. Ke5 {[%clk 0:00:20]}  Nh4 {[%clk 0:00:08]} 71. Kf6 {[%clk 0:00:20]}  Ng2 {[%clk 0:00:09]} 72. Kg5 {[%clk 0:00:21]}  Nh4 {[%clk 0:00:09]} 73. Be6 {[%clk 0:00:21]}  Ng2 {[%clk 0:00:10]} 74. Kf5 {[%clk 0:00:21]}  Nh4+ {[%clk 0:00:10]} 75. Ke4 {[%clk 0:00:21]}  Ng2 {[%clk 0:00:11]} 76. Ke5 {[%clk 0:00:19]}  Nh4 {[%clk 0:00:12]} 77. Kf6 {[%clk 0:00:20]}  Ng2 {[%clk 0:00:12]} 78. Kg5 {[%clk 0:00:21]}  Nh4 {[%clk 0:00:12]} 79. Bd5 {[%clk 0:00:20]}  Kxh3 {[%clk 0:00:08]} 1/2-1/2


[Site "https://www.chess.com"]

[Event "Titled Tuesday Blitz July 26 Early 2022"]
[White "Hansen, Eric"]
[Black "Harshavardhan G B"]
[WhiteFideId "2606771"]
[BlackFideId "25059009"]
[WhiteElo "2568"]
[BlackElo "1831"]
[Result "1-0"]
[Round "05"]
[TimeControl "180+1"]
[Date "2022.07.26"]
[WhiteClock "0:02:07"]
[BlackClock "0:00:03"]

1. e4 {[%clk 0:02:57]}  c5 {[%clk 0:02:59]} 2. Nf3 {[%clk 0:02:57]}  d6 {[%clk 0:02:59]} 3. Bb5+ {[%clk 0:02:57]}  Bd7 {[%clk 0:02:58]} 4. Bxd7+ {[%clk 0:02:56]}  Qxd7 {[%clk 0:02:59]} 5. c4 {[%clk 0:02:56]}  Nf6 {[%clk 0:02:58]} 6. Nc3 {[%clk 0:02:57]}  g6 {[%clk 0:02:57]} 7. d4 {[%clk 0:02:53]}  cxd4 {[%clk 0:02:58]} 8. Nxd4 {[%clk 0:02:54]}  Bg7 {[%clk 0:02:57]} 9. h3 {[%clk 0:02:52]}  O-O {[%clk 0:02:58]} 10. Be3 {[%clk 0:02:52]}  Nc6 {[%clk 0:02:58]} 11. Rc1 {[%clk 0:02:52]}  Rfc8 {[%clk 0:02:55]} 12. Nde2 {[%clk 0:02:50]}  Qd8 {[%clk 0:02:44]} 13. O-O {[%clk 0:02:50]}  Qa5 {[%clk 0:02:41]} 14. b3 {[%clk 0:02:50]}  a6 {[%clk 0:02:38]} 15. a4 {[%clk 0:02:48]}  Nd7 {[%clk 0:02:04]} 16. Nd5 {[%clk 0:02:46]}  Qd8 {[%clk 0:01:52]} 17. Bg5 {[%clk 0:02:45]}  Rab8 {[%clk 0:01:46]} 18. Qd2 {[%clk 0:02:43]}  Bf8 {[%clk 0:01:45]} 19. b4 {[%clk 0:02:40]}  b5 {[%clk 0:01:44]} 20. cxb5 {[%clk 0:02:40]}  axb5 {[%clk 0:01:45]} 21. a5 {[%clk 0:02:39]}  Nde5 {[%clk 0:01:44]} 22. Nd4 {[%clk 0:02:32]}  Nc4 {[%clk 0:01:08]} 23. Nxc6 {[%clk 0:02:18]}  Rxc6 {[%clk 0:01:02]} 24. Qe2 {[%clk 0:02:15]}  h6 {[%clk 0:00:53]} 25. Bh4 {[%clk 0:02:13]}  g5 {[%clk 0:00:48]} 26. Bg3 {[%clk 0:02:12]}  e6 {[%clk 0:00:48]} 27. Nc3 {[%clk 0:02:12]}  Bg7 {[%clk 0:00:46]} 28. Nxb5 {[%clk 0:02:12]}  Rxb5 {[%clk 0:00:12]} 29. Rxc4 {[%clk 0:02:10]}  Rxc4 {[%clk 0:00:04]} 30. Qxc4 {[%clk 0:02:09]}  Qd7 {[%clk 0:00:05]} 31. Bxd6 {[%clk 0:02:08]}  Qb7 {[%clk 0:00:03]} 32. Rc1 {[%clk 0:02:07]}  Bf8 {[%clk 0:00:03]} 33. Qc8 {[%clk 0:02:07]} 1-0


[Site "https://www.chess.com"]

[Event "Titled Tuesday Blitz July 26 Early 2022"]
[White "Ismagilov, Damir"]
[Black "Pap, Gyula"]
[WhiteFideId "34199982"]
[BlackFideId "725323"]
[WhiteElo "2138"]
[BlackElo "2553"]
[Result "1-0"]
[Round "05"]
[TimeControl "180+1"]
[Date "2022.07.26"]
[WhiteClock "0:00:08"]
[BlackClock "0:00:04"]

1. d4 {[%clk 0:03:00]}  Nf6 {[%clk 0:02:59]} 2. c4 {[%clk 0:03:00]}  e6 {[%clk 0:02:59]} 3. Nf3 {[%clk 0:02:59]}  Bb4+ {[%clk 0:02:58]} 4. Nbd2 {[%clk 0:02:58]}  c5 {[%clk 0:02:51]} 5. a3 {[%clk 0:02:57]}  Bxd2+ {[%clk 0:02:50]} 6. Bxd2 {[%clk 0:02:57]}  cxd4 {[%clk 0:02:48]} 7. Nxd4 {[%clk 0:02:58]}  b6 {[%clk 0:02:46]} 8. e3 {[%clk 0:02:25]}  Bb7 {[%clk 0:02:45]} 9. Bd3 {[%clk 0:02:14]}  a6 {[%clk 0:02:36]} 10. O-O {[%clk 0:02:13]}  Nc6 {[%clk 0:02:34]} 11. Bc3 {[%clk 0:02:10]}  Rc8 {[%clk 0:02:30]} 12. Qe2 {[%clk 0:02:09]}  O-O {[%clk 0:02:24]} 13. Rfd1 {[%clk 0:02:05]}  Qc7 {[%clk 0:02:21]} 14. b3 {[%clk 0:01:57]}  Ne5 {[%clk 0:02:08]} 15. Bc2 {[%clk 0:01:55]}  d5 {[%clk 0:02:06]} 16. f4 {[%clk 0:01:36]}  Ned7 {[%clk 0:01:47]} 17. Bb4 {[%clk 0:01:25]}  Rfe8 {[%clk 0:01:47]} 18. Rac1 {[%clk 0:01:24]}  dxc4 {[%clk 0:01:41]} 19. bxc4 {[%clk 0:01:22]}  Nc5 {[%clk 0:01:42]} 20. Nf3 {[%clk 0:01:09]}  Nce4 {[%clk 0:01:24]} 21. Rd4 {[%clk 0:01:04]}  a5 {[%clk 0:01:16]} 22. Be1 {[%clk 0:01:03]}  Qc5 {[%clk 0:01:17]} 23. Rb1 {[%clk 0:00:56]}  Qxa3 {[%clk 0:00:58]} 24. Rxb6 {[%clk 0:00:54]}  Ba8 {[%clk 0:00:59]} 25. Ra6 {[%clk 0:00:49]}  Nc3 {[%clk 0:00:48]} 26. Qd3 {[%clk 0:00:40]}  Nfe4 {[%clk 0:00:45]} 27. Rxa8 {[%clk 0:00:35]}  Rxa8 {[%clk 0:00:41]} 28. Rxe4 {[%clk 0:00:35]}  a4 {[%clk 0:00:33]} 29. Bxc3 {[%clk 0:00:32]}  Qc1+ {[%clk 0:00:29]} 30. Kf2 {[%clk 0:00:32]}  a3 {[%clk 0:00:29]} 31. Rd4 {[%clk 0:00:21]}  g6 {[%clk 0:00:25]} 32. Rd7 {[%clk 0:00:21]}  a2 {[%clk 0:00:22]} 33. Ng5 {[%clk 0:00:15]}  a1=Q {[%clk 0:00:21]} 34. Bxa1 {[%clk 0:00:15]}  Rxa1 {[%clk 0:00:21]} 35. Nxf7 {[%clk 0:00:15]}  Qe1+ {[%clk 0:00:05]} 36. Kf3 {[%clk 0:00:14]}  Qf1+ {[%clk 0:00:05]} 37. Qxf1 {[%clk 0:00:15]}  Rxf1+ {[%clk 0:00:06]} 38. Ke2 {[%clk 0:00:15]}  Rc1 {[%clk 0:00:05]} 39. Bd3 {[%clk 0:00:14]}  Ra1 {[%clk 0:00:06]} 40. Nh6+ {[%clk 0:00:11]}  Kh8 {[%clk 0:00:05]} 41. Nf7+ {[%clk 0:00:10]}  Kg8 {[%clk 0:00:05]} 42. Ng5 {[%clk 0:00:11]}  e5 {[%clk 0:00:05]} 43. Be4 {[%clk 0:00:07]}  exf4 {[%clk 0:00:04]} 44. Bd5+ {[%clk 0:00:07]}  Kh8 {[%clk 0:00:04]} 45. Rxh7# {[%clk 0:00:08]} 1-0


[Site "https://www.chess.com"]

[Event "Titled Tuesday Blitz July 26 Early 2022"]
[White "Kamsky, Gata"]
[Black "Wagner, Dennis"]
[WhiteFideId "2000024"]
[BlackFideId "24650684"]
[WhiteElo "2645"]
[BlackElo "2355"]
[Result "1-0"]
[Round "05"]
[TimeControl "180+1"]
[Date "2022.07.26"]
[WhiteClock "0:01:34"]
[BlackClock "0:00:09"]

1. d4 {[%clk 0:03:00]}  g6 {[%clk 0:02:56]} 2. Nf3 {[%clk 0:03:00]}  Bg7 {[%clk 0:02:55]} 3. c3 {[%clk 0:03:00]}  d6 {[%clk 0:02:55]} 4. e4 {[%clk 0:02:59]}  Nf6 {[%clk 0:02:51]} 5. Bd3 {[%clk 0:03:00]}  O-O {[%clk 0:02:51]} 6. O-O {[%clk 0:03:00]}  Nbd7 {[%clk 0:02:51]} 7. h3 {[%clk 0:03:00]}  e5 {[%clk 0:02:51]} 8. Re1 {[%clk 0:03:00]}  b6 {[%clk 0:02:51]} 9. a4 {[%clk 0:02:59]}  a5 {[%clk 0:02:51]} 10. Bg5 {[%clk 0:02:57]}  Bb7 {[%clk 0:02:50]} 11. Nbd2 {[%clk 0:02:57]}  h6 {[%clk 0:02:50]} 12. Bh4 {[%clk 0:02:57]}  Qe8 {[%clk 0:02:35]} 13. Bb5 {[%clk 0:02:55]}  c6 {[%clk 0:02:34]} 14. Bf1 {[%clk 0:02:52]}  Nh5 {[%clk 0:02:35]} 15. Nc4 {[%clk 0:02:49]}  Qe6 {[%clk 0:02:27]} 16. dxe5 {[%clk 0:02:47]}  dxe5 {[%clk 0:02:00]} 17. Qd6 {[%clk 0:02:45]}  g5 {[%clk 0:01:32]} 18. Qxe6 {[%clk 0:02:43]}  fxe6 {[%clk 0:01:33]} 19. Bg3 {[%clk 0:02:39]}  Nxg3 {[%clk 0:01:33]} 20. fxg3 {[%clk 0:02:39]}  Kf7 {[%clk 0:01:29]} 21. Red1 {[%clk 0:02:37]}  Ke7 {[%clk 0:00:56]} 22. Rxd7+ {[%clk 0:02:33]}  Kxd7 {[%clk 0:00:57]} 23. Nxb6+ {[%clk 0:02:34]}  Kc7 {[%clk 0:00:46]} 24. Nxa8+ {[%clk 0:02:34]}  Rxa8 {[%clk 0:00:47]} 25. Bc4 {[%clk 0:02:33]}  Bc8 {[%clk 0:00:47]} 26. b3 {[%clk 0:02:26]}  Bf8 {[%clk 0:00:35]} 27. Kf1 {[%clk 0:02:22]}  Bd6 {[%clk 0:00:34]} 28. Ke2 {[%clk 0:02:21]}  Bd7 {[%clk 0:00:34]} 29. Nh2 {[%clk 0:02:00]}  Rf8 {[%clk 0:00:33]} 30. Rf1 {[%clk 0:01:52]}  Rxf1 {[%clk 0:00:31]} 31. Kxf1 {[%clk 0:01:53]}  Bf8 {[%clk 0:00:24]} 32. h4 {[%clk 0:01:41]}  Kd6 {[%clk 0:00:17]} 33. hxg5 {[%clk 0:01:40]}  hxg5 {[%clk 0:00:17]} 34. Ke2 {[%clk 0:01:39]}  c5 {[%clk 0:00:15]} 35. Kf3 {[%clk 0:01:38]}  Bc6 {[%clk 0:00:15]} 36. Ng4 {[%clk 0:01:37]}  Bg7 {[%clk 0:00:15]} 37. Nf2 {[%clk 0:01:37]}  Ke7 {[%clk 0:00:10]} 38. Kg4 {[%clk 0:01:37]}  Kf6 {[%clk 0:00:10]} 39. Bd3 {[%clk 0:01:36]}  Kg6 {[%clk 0:00:08]} 40. Nd1 {[%clk 0:01:33]}  Kh6 {[%clk 0:00:08]} 41. Ne3 {[%clk 0:01:33]}  Be8 {[%clk 0:00:08]} 42. Kf3 {[%clk 0:01:34]}  Bh5+ {[%clk 0:00:09]} 43. g4 {[%clk 0:01:34]}  Be8 {[%clk 0:00:09]} 44. Nc4 {[%clk 0:01:34]} 1-0


[Site "https://www.chess.com"]

[Event "Titled Tuesday Blitz July 26 Early 2022"]
[White "Leschinsky, Gary"]
[Black "Fecker, Noah"]
[WhiteFideId "30951321"]
[BlackFideId "1334263"]
[WhiteElo "1809"]
[BlackElo "2312"]
[Result "0-1"]
[Round "05"]
[TimeControl "180+1"]
[Date "2022.07.27"]
[WhiteClock "0:00:07"]
[BlackClock "0:00:25"]

1. d4 {[%clk 0:03:00]}  d5 {[%clk 0:02:59]} 2. Nf3 {[%clk 0:02:58]}  Nf6 {[%clk 0:02:58]} 3. c4 {[%clk 0:02:56]}  e6 {[%clk 0:02:57]} 4. Nc3 {[%clk 0:02:56]}  dxc4 {[%clk 0:02:56]} 5. e4 {[%clk 0:02:53]}  b5 {[%clk 0:02:55]} 6. e5 {[%clk 0:02:54]}  Nd5 {[%clk 0:02:55]} 7. Nxb5 {[%clk 0:02:54]}  Nb6 {[%clk 0:02:54]} 8. Be2 {[%clk 0:02:49]}  Nc6 {[%clk 0:02:39]} 9. O-O {[%clk 0:02:48]}  Be7 {[%clk 0:02:38]} 10. b3 {[%clk 0:02:42]}  cxb3 {[%clk 0:02:35]} 11. axb3 {[%clk 0:02:43]}  Bb7 {[%clk 0:02:35]} 12. Ba3 {[%clk 0:02:41]}  Nb4 {[%clk 0:02:32]} 13. Qd2 {[%clk 0:02:29]}  N6d5 {[%clk 0:02:30]} 14. Nc3 {[%clk 0:02:22]}  O-O {[%clk 0:02:26]} 15. Ne4 {[%clk 0:02:19]}  a5 {[%clk 0:02:17]} 16. Rfc1 {[%clk 0:02:17]}  Qb8 {[%clk 0:02:08]} 17. Nc5 {[%clk 0:02:12]}  Rd8 {[%clk 0:02:02]} 18. h4 {[%clk 0:02:03]}  h6 {[%clk 0:02:00]} 19. h5 {[%clk 0:01:49]}  Bc6 {[%clk 0:01:57]} 20. Bc4 {[%clk 0:00:53]}  Qb6 {[%clk 0:01:54]} 21. Bd3 {[%clk 0:00:34]}  Rab8 {[%clk 0:01:47]} 22. Be4 {[%clk 0:00:33]}  Ba8 {[%clk 0:01:39]} 23. g3 {[%clk 0:00:31]}  Qb5 {[%clk 0:01:30]} 24. Kg2 {[%clk 0:00:25]}  Rb6 {[%clk 0:01:25]} 25. Bxb4 {[%clk 0:00:22]}  Nxb4 {[%clk 0:01:14]} 26. Qf4 {[%clk 0:00:22]}  Nd5 {[%clk 0:01:03]} 27. Qg4 {[%clk 0:00:20]}  Qe2 {[%clk 0:00:52]} 28. Re1 {[%clk 0:00:06]}  Ne3+ {[%clk 0:00:51]} 29. Kg1 {[%clk 0:00:06]}  Qxe1+ {[%clk 0:00:46]} 30. Rxe1 {[%clk 0:00:05]}  Nxg4 {[%clk 0:00:46]} 31. Bxa8 {[%clk 0:00:03]}  Rxa8 {[%clk 0:00:47]} 32. Nd2 {[%clk 0:00:03]}  Rb4 {[%clk 0:00:41]} 33. Re4 {[%clk 0:00:02]}  Bxc5 {[%clk 0:00:38]} 34. Rxg4 {[%clk 0:00:02]}  Bxd4 {[%clk 0:00:36]} 35. Ne4 {[%clk 0:00:02]}  Kf8 {[%clk 0:00:34]} 36. Kg2 {[%clk 0:00:02]}  Rxb3 {[%clk 0:00:28]} 37. Rf4 {[%clk 0:00:02]}  a4 {[%clk 0:00:26]} 38. g4 {[%clk 0:00:01]}  Bxe5 {[%clk 0:00:24]} 39. Rf3 {[%clk 0:00:01]}  Rxf3 {[%clk 0:00:23]} 40. Kxf3 {[%clk 0:00:02]}  a3 {[%clk 0:00:24]} 41. g5 {[%clk 0:00:03]}  a2 {[%clk 0:00:24]} 42. gxh6 {[%clk 0:00:03]}  gxh6 {[%clk 0:00:24]} 43. Nf6 {[%clk 0:00:03]}  Bxf6 {[%clk 0:00:24]} 44. Kg3 {[%clk 0:00:04]}  a1=Q {[%clk 0:00:25]} 45. f4 {[%clk 0:00:04]}  Qd4 {[%clk 0:00:25]} 46. f5 {[%clk 0:00:05]}  Ra3+ {[%clk 0:00:23]} 47. Kh2 {[%clk 0:00:06]}  Qb2+ {[%clk 0:00:24]} 48. Kh1 {[%clk 0:00:07]}  Ra1# {[%clk 0:00:25]} 0-1


[Site "https://www.chess.com"]

[Event "Titled Tuesday Blitz July 26 Early 2022"]
[White "Lewtak, Damian"]
[Black "Chen, Justin"]
[WhiteFideId "1141724"]
[BlackFideId "2098199"]
[WhiteElo "2359"]
[BlackElo "2289"]
[Result "0-1"]
[Round "05"]
[TimeControl "180+1"]
[Date "2022.07.27"]
[WhiteClock "0:00:20"]
[BlackClock "0:00:06"]

1. e4 {[%clk 0:02:56]}  e5 {[%clk 0:03:00]} 2. Nf3 {[%clk 0:02:56]}  Nc6 {[%clk 0:03:00]} 3. Bb5 {[%clk 0:02:56]}  f5 {[%clk 0:03:01]} 4. Bxc6 {[%clk 0:02:55]}  dxc6 {[%clk 0:03:00]} 5. d3 {[%clk 0:02:55]}  fxe4 {[%clk 0:02:41]} 6. dxe4 {[%clk 0:02:56]}  Qxd1+ {[%clk 0:02:36]} 7. Kxd1 {[%clk 0:02:57]}  Bg4 {[%clk 0:02:37]} 8. Ke2 {[%clk 0:02:57]}  Bd6 {[%clk 0:02:28]} 9. Be3 {[%clk 0:02:53]}  Ne7 {[%clk 0:02:27]} 10. Nd2 {[%clk 0:02:51]}  Ng6 {[%clk 0:02:21]} 11. h3 {[%clk 0:02:48]}  Bd7 {[%clk 0:02:18]} 12. Nc4 {[%clk 0:02:43]}  Be6 {[%clk 0:02:16]} 13. Nxd6+ {[%clk 0:02:36]}  cxd6 {[%clk 0:02:17]} 14. Rhd1 {[%clk 0:02:36]}  Ke7 {[%clk 0:02:07]} 15. b3 {[%clk 0:02:34]}  h6 {[%clk 0:02:04]} 16. c4 {[%clk 0:02:34]}  b6 {[%clk 0:01:56]} 17. Rac1 {[%clk 0:02:32]}  Rhf8 {[%clk 0:01:55]} 18. Ne1 {[%clk 0:02:27]}  Rad8 {[%clk 0:01:38]} 19. f3 {[%clk 0:02:25]}  Rd7 {[%clk 0:01:34]} 20. Rd2 {[%clk 0:02:14]}  Rfd8 {[%clk 0:01:33]} 21. Nc2 {[%clk 0:02:10]}  c5 {[%clk 0:01:28]} 22. Bf2 {[%clk 0:02:04]}  Nf4+ {[%clk 0:01:22]} 23. Kf1 {[%clk 0:02:04]}  g5 {[%clk 0:01:19]} 24. Bg3 {[%clk 0:02:03]}  Bf7 {[%clk 0:01:14]} 25. Bxf4 {[%clk 0:02:03]}  gxf4 {[%clk 0:01:15]} 26. Na3 {[%clk 0:01:57]}  a6 {[%clk 0:01:14]} 27. Nb1 {[%clk 0:01:53]}  b5 {[%clk 0:01:14]} 28. cxb5 {[%clk 0:01:53]}  axb5 {[%clk 0:01:15]} 29. Nc3 {[%clk 0:01:54]}  b4 {[%clk 0:01:13]} 30. Na4 {[%clk 0:01:48]}  Rb8 {[%clk 0:01:07]} 31. Rcd1 {[%clk 0:01:47]}  Rdd8 {[%clk 0:00:49]} 32. Kf2 {[%clk 0:01:35]}  Ra8 {[%clk 0:00:43]} 33. Nb6 {[%clk 0:01:35]}  Ra6 {[%clk 0:00:39]} 34. Na4 {[%clk 0:01:32]}  Raa8 {[%clk 0:00:33]} 35. Ke1 {[%clk 0:01:26]}  Ra5 {[%clk 0:00:23]} 36. Nb6 {[%clk 0:00:49]}  Ra6 {[%clk 0:00:14]} 37. Na4 {[%clk 0:00:43]}  c4 {[%clk 0:00:11]} 38. Rc1 {[%clk 0:00:24]}  c3 {[%clk 0:00:07]} 39. Rd3 {[%clk 0:00:21]}  Be8 {[%clk 0:00:06]} 40. a3 {[%clk 0:00:15]}  Bxa4 {[%clk 0:00:03]} 41. bxa4 {[%clk 0:00:16]}  bxa3 {[%clk 0:00:04]} 42. Rdxc3 {[%clk 0:00:15]}  Rxa4 {[%clk 0:00:04]} 43. Ra1 {[%clk 0:00:16]}  Rda8 {[%clk 0:00:03]} 44. Kd2 {[%clk 0:00:17]}  Kd7 {[%clk 0:00:03]} 45. Kc2 {[%clk 0:00:17]}  R4a7 {[%clk 0:00:03]} 46. Ra2 {[%clk 0:00:16]}  Ra6 {[%clk 0:00:03]} 47. Rc4 {[%clk 0:00:15]}  Rc8 {[%clk 0:00:02]} 48. Kb3 {[%clk 0:00:15]}  Rb8+ {[%clk 0:00:02]} 49. Rb4 {[%clk 0:00:13]}  Rxb4+ {[%clk 0:00:01]} 50. Kxb4 {[%clk 0:00:14]}  Kc6 {[%clk 0:00:01]} 51. Rc2+ {[%clk 0:00:13]}  Kb6 {[%clk 0:00:01]} 52. Ra2 {[%clk 0:00:14]}  Kc6 {[%clk 0:00:02]} 53. Kc4 {[%clk 0:00:14]}  Ra4+ {[%clk 0:00:02]} 54. Kb3 {[%clk 0:00:15]}  Kb5 {[%clk 0:00:03]} 55. h4 {[%clk 0:00:14]}  Ra6 {[%clk 0:00:02]} 56. h5 {[%clk 0:00:14]}  Kc5 {[%clk 0:00:03]} 57. Rd2 {[%clk 0:00:12]}  a2 {[%clk 0:00:02]} 58. Rc2+ {[%clk 0:00:13]}  Kd4 {[%clk 0:00:02]} 59. Rxa2 {[%clk 0:00:11]}  Rxa2 {[%clk 0:00:03]} 60. Kxa2 {[%clk 0:00:12]}  Ke3 {[%clk 0:00:04]} 61. Kb3 {[%clk 0:00:13]}  Kf2 {[%clk 0:00:04]} 62. Kc3 {[%clk 0:00:14]}  Kxg2 {[%clk 0:00:05]} 63. Kc4 {[%clk 0:00:13]}  Kxf3 {[%clk 0:00:05]} 64. Kd5 {[%clk 0:00:14]}  Ke3 {[%clk 0:00:02]} 65. Kxd6 {[%clk 0:00:15]}  Kxe4 {[%clk 0:00:03]} 66. Ke6 {[%clk 0:00:15]}  f3 {[%clk 0:00:04]} 67. Kf6 {[%clk 0:00:16]}  f2 {[%clk 0:00:05]} 68. Kg6 {[%clk 0:00:17]}  f1=Q {[%clk 0:00:05]} 69. Kxh6 {[%clk 0:00:18]}  Qg2 {[%clk 0:00:05]} 70. Kh7 {[%clk 0:00:18]}  Kf5 {[%clk 0:00:05]} 71. h6 {[%clk 0:00:19]}  Kf6 {[%clk 0:00:05]} 72. Kh8 {[%clk 0:00:20]}  Kf7 {[%clk 0:00:06]} 73. Kh7 {[%clk 0:00:20]}  Qg8# {[%clk 0:00:06]} 0-1


[Site "https://www.chess.com"]